{"text_format":"3","workbook":"xlsx","n_sheets":6,"sheets":["SEMESTRE","CREDITI","BUDGET","USCITE MENSILI NETTE","USCITE SEMESTRE","LIBRI"],"not_rendered":{"defined_names":21},"read":"whole","date_system":"1900"}

{"sheet":"SEMESTRE","index":0,"n_rows":29,"n_cols":9,"rows_kept":29,"merged":[[2,3,2,4]]}
[null,"ORARIO LEZIONI"]
[null,"SEMESTRE AUTUNNALE"]
[null,null,"ORA INIZIO","INTERVALLO DI TEMPO",null,"ANNO"]
[null,null,"09:00:00",60,"(in minuti)"]
[null,"ORA ","LUN","MAR","MER","GIO","VEN","SAB","DOM"]
[null,{"$f":"OraInizio+TIME(0,(ROW(A1)-1)*IntervalloTempo,0)","v":"09:00:00"},"Colazione","Colazione","Colazione","Colazione","Colazione"]
[null,"10:00:00","Economia: Lezione edificio B, stanza 256"]
[null,"11:00:00",{"$nulls":3},"Fisica: Laboratorio \nEdificio J, stanza 309"]
[null,"12:00:00"]
[null,"13:00:00"]
[null,"14:00:00"]
[null,"15:00:00"]
[null,"16:00:00"]
[null,"17:00:00"]
[null,"18:00:00"]
[null,"19:00:00"]
[null,"20:00:00"]
[null,"21:00:00"]
[null,"22:00:00"]
[null,"23:00:00"]
[null,1]
[null,1.0416666666666665]
[null,1.0833333333333335]
[null,1.125]
[null,1.1666666666666665]
[null,1.2083333333333335]
[null,1.25]
[null,1.2916666666666665]
[null,1.3333333333333335]

{"sheet":"CREDITI","index":1,"n_rows":17,"n_cols":8,"rows_kept":17}
[null,"UNIVERSITÀ"]
[null,"PIANO CREDITI"]
[null,"Titolo di studio",{"$f":"Anno","v":"ANNO"}]
[null,"AVANZAMENTO COMPLESSIVO",null,"AVANZAMENTO COMPLESSIVO"]
[null,{"$f":"AVERAGE(Corsi[VOTO])","v":3.5},{"$f":"IFERROR(TEXT(AVERAGEIF(Corsi[COMPLETATO],\"Sì\",Corsi[VOTO]),\"0,00\"),\"0,00\")&\" Media voti attuale\"","v":"3,50 Media voti attuale"},{"$f":"COUNTIF(Corsi[COMPLETATO],\"Sì\")/COUNTA(Corsi[TITOLO CORSO])","v":0.6666666666666666},{"$f":"TEXT(COUNTIF(Corsi[COMPLETATO],\"Sì\")/COUNTA(Corsi[TITOLO CORSO]),\"0%\")&\" Completato\"","v":"67% Completato"}]
[null,"Nota: il seguente riepilogo dei crediti viene automaticamente compilato con le voci immesse nella tabella Corsi universitari"]
[null,"REQUISITO","TOTALE CREDITI","REALIZZATO","NECESSARIO"]
[null,"Specializzazione principale",{"$f":"IF(SUMIF(Corsi[REQUISITO],CREDITI!$B8,Corsi[CREDITI])=0,\"0\",SUMIF(Corsi[REQUISITO],CREDITI!$B8,Corsi[CREDITI]))","v":4},{"$f":"SUMIFS(Corsi[CREDITI],Corsi[REQUISITO],CREDITI!$B8,Corsi[COMPLETATO],\"Sì\")","v":4},{"$f":"SUMIF(Corsi[REQUISITO],CREDITI!$B8,Corsi[CREDITI])-SUMIFS(Corsi[CREDITI],Corsi[REQUISITO],CREDITI!$B8,Corsi[COMPLETATO],\"Sì\")","v":0}]
[null,"Specializzazione secondaria",{"$f":"IF(SUMIF(Corsi[REQUISITO],CREDITI!$B9,Corsi[CREDITI])=0,\"0\",SUMIF(Corsi[REQUISITO],CREDITI!$B9,Corsi[CREDITI]))","v":3},{"$f":"SUMIFS(Corsi[CREDITI],Corsi[REQUISITO],CREDITI!$B9,Corsi[COMPLETATO],\"Sì\")","v":0},{"$f":"SUMIF(Corsi[REQUISITO],CREDITI!$B9,Corsi[CREDITI])-SUMIFS(Corsi[CREDITI],Corsi[REQUISITO],CREDITI!$B9,Corsi[COMPLETATO],\"Sì\")","v":3}]
[null,"Corso scelto",{"$f":"IF(SUMIF(Corsi[REQUISITO],CREDITI!$B10,Corsi[CREDITI])=0,\"0\",SUMIF(Corsi[REQUISITO],CREDITI!$B10,Corsi[CREDITI]))","v":2},{"$f":"SUMIFS(Corsi[CREDITI],Corsi[REQUISITO],CREDITI!$B10,Corsi[COMPLETATO],\"Sì\")","v":2},{"$f":"SUMIF(Corsi[REQUISITO],CREDITI!$B10,Corsi[CREDITI])-SUMIFS(Corsi[CREDITI],Corsi[REQUISITO],CREDITI!$B10,Corsi[COMPLETATO],\"Sì\")","v":0}]
[null,"Studio generale",{"$f":"IF(SUMIF(Corsi[REQUISITO],CREDITI!$B11,Corsi[CREDITI])=0,\"0\",SUMIF(Corsi[REQUISITO],CREDITI!$B11,Corsi[CREDITI]))","v":"0"},{"$f":"SUMIFS(Corsi[CREDITI],Corsi[REQUISITO],CREDITI!$B11,Corsi[COMPLETATO],\"Sì\")","v":0},{"$f":"SUMIF(Corsi[REQUISITO],CREDITI!$B11,Corsi[CREDITI])-SUMIFS(Corsi[CREDITI],Corsi[REQUISITO],CREDITI!$B11,Corsi[COMPLETATO],\"Sì\")","v":0}]
[null,"Totale",{"$f":"SUBTOTAL(109,CREDITI!$C$8:$C$11)","v":9},{"$f":"SUBTOTAL(109,CREDITI!$D$8:$D$11)","v":6},{"$f":"SUBTOTAL(109,CREDITI!$E$8:$E$11)","v":3}]
[null,"Corsi"]
[null,"TITOLO CORSO","N. CORSO","REQUISITO","CREDITI","COMPLETATO","VOTO","SEMESTRE"]
[null,"Corso 1","Numero","Specializzazione principale",4,"Sì",{"v":4,"d":"4.0"},"Semestre 1"]
[null,"Corso 2","Numero","Specializzazione secondaria",3,"No",null,"Semestre 1"]
[null,"Corso 3","Numero","Corso scelto",2,"Sì",{"v":3,"d":"3.0"},"Semestre 1"]

{"sheet":"BUDGET","index":2,"n_rows":15,"n_cols":4,"rows_kept":15,"merged":[[5,1,5,2]]}
[null,{"$f":"Università","v":"UNIVERSITÀ"}]
[null,"REGISTRAZIONE BUDGET"]
[null,"Budget personale",{"$f":"Anno","v":"ANNO"}]
[null,"PERCENTUALE DI ENTRATE SPESE"]
[null,{"$f":"USCITE_MENSILI_NETTE/ENTRATE_MENSILI_NETTE","v":{"v":0.7454545454545455,"d":"€ 1"}}]
[null,{"$f":"B5","v":0.7454545454545455}]
[null,"ENTRATE MENSILI NETTE","USCITE MENSILI NETTE","SALDO"]
[null,{"$f":"C10","v":{"v":2750,"d":"€ 2,750"}},{"$f":"'USCITE MENSILI NETTE'!C4+'USCITE SEMESTRE'!D4","v":{"v":2050,"d":"€ 2,050"}},{"$f":"ENTRATE_MENSILI_NETTE-USCITE_MENSILI_NETTE","v":{"v":700,"d":"€ 700"}}]
[null,"Mesi nel semestre",4]
[null,"ENTRATE MENSILI",{"$f":"SUM(EntrateMensili[IMPORTO])","v":{"v":2750,"d":"€ 2,750"}}]
[null,"VOCE","IMPORTO"]
[null,"Entrate fisse",{"v":1500,"d":"€ 1,500"}]
[null,"Sovvenzioni",{"v":500,"d":"€ 500"}]
[null,"Prestiti",{"v":500,"d":"€ 500"}]
[null,"Altre entrate",{"v":250,"d":"€ 250"}]

{"sheet":"USCITE MENSILI NETTE","index":3,"n_rows":15,"n_cols":3,"rows_kept":15}
[null,{"$f":"Università","v":"UNIVERSITÀ"}]
[null,"REGISTRAZIONE BUDGET"]
[null,"Uscite mensili",{"$f":"Anno","v":"ANNO"}]
[null,"USCITE MENSILI",{"$f":"SUM(UsciteMensili[IMPORTO])","v":{"v":1675,"d":"€ 1,675"}}]
[null,"VOCE","IMPORTO"]
[null,"Affitto",{"v":300,"d":"€ 300"}]
[null,"Utenze",{"v":50,"d":"€ 50"}]
[null,"Cellulare",{"v":75,"d":"€ 75"}]
[null,"Generi alimentari",{"v":250,"d":"€ 250"}]
[null,"Spese auto",{"v":50,"d":"€ 50"}]
[null,"Finanziamenti",{"v":500,"d":"€ 500"}]
[null,"Carte di credito",{"v":275,"d":"€ 275"}]
[null,"Assicurazione",{"v":125,"d":"€ 125"}]
[null,"Svago",{"v":50,"d":"€ 50"}]
[null,"Varie",{"v":0,"d":"€ 0"}]

{"sheet":"USCITE SEMESTRE","index":4,"n_rows":11,"n_cols":4,"rows_kept":11}
[null,{"$f":"Università","v":"UNIVERSITÀ"}]
[null,"REGISTRAZIONE BUDGET"]
[null,"Uscite semestre",{"$f":"Anno","v":"ANNO"}]
[null,"USCITE SEMESTRE (totali/mensili)",{"$f":"SUM(UsciteSemestre[IMPORTO])","v":{"v":1500,"d":"€ 1,500"}},{"$f":"SUM(UsciteSemestre[AL MESE])","v":{"v":375,"d":"€ 375"}}]
[null,"VOCE","IMPORTO","AL MESE"]
[null,"Retta",{"v":750,"d":"€ 750"},{"$f":"UsciteSemestre[[#This Row],[IMPORTO]]/Mesi_nel_semestre","v":{"v":187.5,"d":"€ 188"}}]
[null,"Spese laboratorio",{"v":250,"d":"€ 250"},{"$f":"UsciteSemestre[[#This Row],[IMPORTO]]/Mesi_nel_semestre","v":{"v":62.5,"d":"€ 63"}}]
[null,"Libri",{"v":500,"d":"€ 500"},{"$f":"UsciteSemestre[[#This Row],[IMPORTO]]/Mesi_nel_semestre","v":{"v":125,"d":"€ 125"}}]
[null,"Depositi",{"v":0,"d":"€ 0"},{"$f":"UsciteSemestre[[#This Row],[IMPORTO]]/Mesi_nel_semestre","v":{"v":0,"d":"€ 0"}}]
[null,"Trasporti",{"v":0,"d":"€ 0"},{"$f":"UsciteSemestre[[#This Row],[IMPORTO]]/Mesi_nel_semestre","v":{"v":0,"d":"€ 0"}}]
[null,"Altre spese",{"v":0,"d":"€ 0"},{"$f":"UsciteSemestre[[#This Row],[IMPORTO]]/Mesi_nel_semestre","v":{"v":0,"d":"€ 0"}}]

{"sheet":"LIBRI","index":5,"n_rows":7,"n_cols":7,"rows_kept":7}
[null,{"$f":"Università","v":"UNIVERSITÀ"}]
[null,"REGISTRAZIONE LIBRI"]
[null,"Elenco libri"]
[null,"TITOLO","AUTORE","CORSO","DOVE ACQUISTARE","ISBN","NOTE"]
[null,"Titolo libro","Autore","Corso","Luogo","Codice"]
[null,"Titolo libro","Autore","Corso","Luogo","Codice"]
[null,"Titolo libro","Autore","Corso","Luogo","Codice"]